[Event "Titled Tuesday Blitz February 28 Early 2023"]
[White "Rosenberg, Evan S"]
[Black "Levitan, Caleb Levi"]
[WhiteFideId "2019299"]
[BlackFideId "14332620"]
[WhiteElo "2436"]
[BlackElo "1963"]
[Result "1-0"]
[Round "09"]
[TimeControl "180+2"]
[Date "2023.02.28"]
[WhiteClock "0:00:13"]
[BlackClock "0:00:04"]

1. d4 {[%clk 0:02:57]}  Nf6 {[%clk 0:02:59]} 2. Nf3 {[%clk 0:02:54]}  d5 {[%clk 0:02:50]} 3. c3 {[%clk 0:02:54]}  e6 {[%clk 0:02:35]} 4. Bg5 {[%clk 0:02:46]}  Be7 {[%clk 0:02:33]} 5. Nbd2 {[%clk 0:02:32]}  O-O {[%clk 0:02:25]} 6. Qc2 {[%clk 0:02:27]}  h6 {[%clk 0:02:20]} 7. Bh4 {[%clk 0:02:23]}  c5 {[%clk 0:02:19]} 8. e3 {[%clk 0:02:18]}  Nc6 {[%clk 0:02:19]} 9. Bd3 {[%clk 0:02:13]}  b6 {[%clk 0:02:08]} 10. O-O {[%clk 0:02:11]}  Bb7 {[%clk 0:02:06]} 11. Rad1 {[%clk 0:02:08]}  Rc8 {[%clk 0:02:02]} 12. Qb1 {[%clk 0:02:08]}  Nh5 {[%clk 0:01:41]} 13. Bxe7 {[%clk 0:02:06]}  Qxe7 {[%clk 0:01:41]} 14. Rfe1 {[%clk 0:02:04]}  f5 {[%clk 0:01:38]} 15. Nf1 {[%clk 0:01:52]}  Nf6 {[%clk 0:01:33]} 16. Ng3 {[%clk 0:01:50]}  Ne4 {[%clk 0:01:31]} 17. Nd2 {[%clk 0:01:45]}  Nd8 {[%clk 0:01:06]} 18. Ndf1 {[%clk 0:01:38]}  Nf7 {[%clk 0:00:49]} 19. f3 {[%clk 0:01:37]}  Nf6 {[%clk 0:00:40]} 20. b4 {[%clk 0:01:22]}  cxb4 {[%clk 0:00:31]} 21. cxb4 {[%clk 0:01:22]}  Nd6 {[%clk 0:00:27]} 22. a4 {[%clk 0:01:10]}  Nc4 {[%clk 0:00:20]} 23. Qb3 {[%clk 0:00:59]}  Nd7 {[%clk 0:00:13]} 24. Nd2 {[%clk 0:00:58]}  Ba6 {[%clk 0:00:07]} 25. b5 {[%clk 0:00:58]}  Nxd2 {[%clk 0:00:07]} 26. Rxd2 {[%clk 0:00:57]}  Bb7 {[%clk 0:00:08]} 27. e4 {[%clk 0:00:52]}  fxe4 {[%clk 0:00:08]} 28. fxe4 {[%clk 0:00:52]}  dxe4 {[%clk 0:00:08]} 29. Bxe4 {[%clk 0:00:50]}  Bxe4 {[%clk 0:00:07]} 30. Rxe4 {[%clk 0:00:47]}  Rc1+ {[%clk 0:00:07]} 31. Rd1 {[%clk 0:00:47]}  Rxd1+ {[%clk 0:00:07]} 32. Qxd1 {[%clk 0:00:47]}  Nf6 {[%clk 0:00:08]} 33. Re1 {[%clk 0:00:41]}  Nd5 {[%clk 0:00:08]} 34. Qe2 {[%clk 0:00:32]}  Rf6 {[%clk 0:00:06]} 35. Ne4 {[%clk 0:00:31]}  Rf8 {[%clk 0:00:05]} 36. g3 {[%clk 0:00:27]}  Qf7 {[%clk 0:00:04]} 37. Nd6 {[%clk 0:00:19]}  Qh5 {[%clk 0:00:04]} 38. Qxh5 {[%clk 0:00:18]}  Kh8 {[%clk 0:00:05]} 39. Rxe6 {[%clk 0:00:17]}  Nc3 {[%clk 0:00:05]} 40. Nf7+ {[%clk 0:00:16]}  Kg8 {[%clk 0:00:04]} 41. Nxh6+ {[%clk 0:00:15]}  gxh6 {[%clk 0:00:04]} 42. Qg6+ {[%clk 0:00:14]}  Kh8 {[%clk 0:00:04]} 43. Qxh6+ {[%clk 0:00:14]}  Kg8 {[%clk 0:00:05]} 44. Qg6+ {[%clk 0:00:15]}  Kh8 {[%clk 0:00:04]} 45. Re7 {[%clk 0:00:14]}  Ne2+ {[%clk 0:00:04]} 46. Rxe2 {[%clk 0:00:14]}  Rc8 {[%clk 0:00:04]} 47. Qh6+ {[%clk 0:00:13]}  Kg8 {[%clk 0:00:03]} 48. Qe6+ {[%clk 0:00:14]}  Kh7 {[%clk 0:00:03]} 49. Qxc8 {[%clk 0:00:14]}  a5 {[%clk 0:00:04]} 50. Qc6 {[%clk 0:00:12]}  Kg7 {[%clk 0:00:04]} 51. Re7+ {[%clk 0:00:12]}  Kf8 {[%clk 0:00:04]} 52. Qe8# {[%clk 0:00:13]} 1-0


[Site "https://www.chess.com"]

[Event "Titled Tuesday Blitz February 28 Early 2023"]
[White "Sanchez, Robert"]
[Black "Ciuffoletti, Paolo"]
[WhiteFideId "2034360"]
[BlackFideId "807630"]
[WhiteElo "2428"]
[BlackElo "2143"]
[Result "1-0"]
[Round "09"]
[TimeControl "180+2"]
[Date "2023.02.28"]
[WhiteClock "0:01:48"]
[BlackClock "0:00:40"]

1. e4 {[%clk 0:02:29]}  c5 {[%clk 0:02:56]} 2. Nf3 {[%clk 0:02:29]}  Nc6 {[%clk 0:02:55]} 3. d4 {[%clk 0:02:29]}  cxd4 {[%clk 0:02:54]} 4. Nxd4 {[%clk 0:02:30]}  Nf6 {[%clk 0:02:55]} 5. Nc3 {[%clk 0:02:31]}  e5 {[%clk 0:02:55]} 6. Ndb5 {[%clk 0:02:31]}  d6 {[%clk 0:02:54]} 7. Bg5 {[%clk 0:02:31]}  a6 {[%clk 0:02:55]} 8. Bxf6 {[%clk 0:02:31]}  gxf6 {[%clk 0:02:54]} 9. Na3 {[%clk 0:02:31]}  b5 {[%clk 0:02:54]} 10. Nd5 {[%clk 0:02:32]}  f5 {[%clk 0:02:53]} 11. Bd3 {[%clk 0:02:31]}  Be6 {[%clk 0:02:53]} 12. c4 {[%clk 0:02:32]}  bxc4 {[%clk 0:02:22]} 13. Nxc4 {[%clk 0:02:29]}  Bg7 {[%clk 0:02:17]} 14. Qa4 {[%clk 0:02:18]}  fxe4 {[%clk 0:01:03]} 15. Qxc6+ {[%clk 0:02:09]}  Bd7 {[%clk 0:01:02]} 16. Nc7+ {[%clk 0:01:49]}  Ke7 {[%clk 0:00:40]} 17. Qxd6# {[%clk 0:01:48]} 1-0


[Site "https://www.chess.com"]

[Event "Titled Tuesday Blitz February 28 Early 2023"]
[White "Mohammed, Zozek Salah Mohammed"]
[Black "Hertlein, Irena"]
[WhiteFideId "4803361"]
[BlackFideId "21817618"]
[WhiteElo "2211"]
[BlackElo "1776"]
[Result "1-0"]
[Round "09"]
[TimeControl "180+2"]
[Date "2023.02.28"]
[WhiteClock "0:01:06"]
[BlackClock "0:00:06"]

1. d4 {[%clk 0:02:57]}  Nf6 {[%clk 0:02:59]} 2. Nf3 {[%clk 0:02:57]}  d5 {[%clk 0:02:58]} 3. g3 {[%clk 0:02:57]}  c5 {[%clk 0:02:57]} 4. Bg2 {[%clk 0:02:58]}  cxd4 {[%clk 0:02:55]} 5. O-O {[%clk 0:02:58]}  Nc6 {[%clk 0:02:43]} 6. Nxd4 {[%clk 0:02:57]}  e5 {[%clk 0:02:43]} 7. Nxc6 {[%clk 0:02:57]}  bxc6 {[%clk 0:02:42]} 8. c4 {[%clk 0:02:58]}  Be6 {[%clk 0:02:41]} 9. Nc3 {[%clk 0:02:58]}  h6 {[%clk 0:02:29]} 10. cxd5 {[%clk 0:02:56]}  cxd5 {[%clk 0:02:29]} 11. Qa4+ {[%clk 0:02:57]}  Bd7 {[%clk 0:02:28]} 12. Qa6 {[%clk 0:02:50]}  d4 {[%clk 0:02:05]} 13. Bxa8 {[%clk 0:02:46]}  Qxa8 {[%clk 0:02:06]} 14. Nb5 {[%clk 0:02:44]}  Nd5 {[%clk 0:01:59]} 15. a4 {[%clk 0:02:20]}  Bc5 {[%clk 0:01:50]} 16. Nd6+ {[%clk 0:02:11]}  Ke7 {[%clk 0:01:49]} 17. Ne4 {[%clk 0:02:08]}  Nb4 {[%clk 0:01:41]} 18. Qc4 {[%clk 0:02:00]}  Rc8 {[%clk 0:00:57]} 19. Nxc5 {[%clk 0:01:52]}  Bh3 {[%clk 0:00:56]} 20. f3 {[%clk 0:01:46]}  Nd5 {[%clk 0:00:43]} 21. Rd1 {[%clk 0:01:38]}  Qc6 {[%clk 0:00:35]} 22. b4 {[%clk 0:01:37]}  Nc3 {[%clk 0:00:25]} 23. Bb2 {[%clk 0:01:29]}  Nxd1 {[%clk 0:00:19]} 24. Rxd1 {[%clk 0:01:30]}  e4 {[%clk 0:00:18]} 25. Qxd4 {[%clk 0:01:27]}  exf3 {[%clk 0:00:18]} 26. Qe3+ {[%clk 0:01:27]}  Kf8 {[%clk 0:00:18]} 27. exf3 {[%clk 0:01:26]}  Qg6 {[%clk 0:00:14]} 28. Qd3 {[%clk 0:01:19]}  Qg5 {[%clk 0:00:09]} 29. Re1 {[%clk 0:01:11]}  Rd8 {[%clk 0:00:08]} 30. Qe3 {[%clk 0:01:07]}  Qg6 {[%clk 0:00:06]} 31. Qe7+ {[%clk 0:01:06]} 1-0


[Site "https://www.chess.com"]

[Event "Titled Tuesday Blitz February 28 Early 2023"]
[White "Kiseleva, Arina"]
[Black "Pein, Jonathan"]
[WhiteFideId "4164989"]
[BlackFideId "417092"]
[WhiteElo "1756"]
[BlackElo "2151"]
[Result "0-1"]
[Round "09"]
[TimeControl "180+2"]
[Date "2023.02.28"]
[WhiteClock "0:00:20"]
[BlackClock "0:01:41"]

1. d4 {[%clk 0:03:00]}  b5 {[%clk 0:02:59]} 2. c3 {[%clk 0:02:56]}  Bb7 {[%clk 0:02:55]} 3. Qc2 {[%clk 0:02:47]}  e6 {[%clk 0:02:53]} 4. e4 {[%clk 0:02:46]}  a6 {[%clk 0:02:51]} 5. f3 {[%clk 0:02:38]}  c5 {[%clk 0:02:51]} 6. Be3 {[%clk 0:02:35]}  Qc7 {[%clk 0:02:48]} 7. Bd3 {[%clk 0:02:10]}  Nf6 {[%clk 0:02:47]} 8. Nd2 {[%clk 0:02:03]}  d6 {[%clk 0:02:42]} 9. Nh3 {[%clk 0:02:00]}  Nbd7 {[%clk 0:02:42]} 10. O-O {[%clk 0:01:57]}  Rc8 {[%clk 0:02:41]} 11. Rac1 {[%clk 0:01:52]}  Be7 {[%clk 0:02:36]} 12. f4 {[%clk 0:01:45]}  cxd4 {[%clk 0:02:26]} 13. Bxd4 {[%clk 0:01:44]}  Nc5 {[%clk 0:02:25]} 14. e5 {[%clk 0:01:36]}  Ng4 {[%clk 0:02:14]} 15. Rce1 {[%clk 0:01:10]}  h5 {[%clk 0:01:58]} 16. Nf3 {[%clk 0:00:48]}  Nxd3 {[%clk 0:01:53]} 17. Qxd3 {[%clk 0:00:48]}  Bd5 {[%clk 0:01:54]} 18. exd6 {[%clk 0:00:42]}  Bxd6 {[%clk 0:01:54]} 19. Bxg7 {[%clk 0:00:40]}  Rg8 {[%clk 0:01:54]} 20. Bf6 {[%clk 0:00:28]}  Nxf6 {[%clk 0:01:52]} 21. f5 {[%clk 0:00:24]}  Bxh2+ {[%clk 0:01:42]} 22. Nxh2 {[%clk 0:00:23]}  Rxg2+ {[%clk 0:01:41]} 23. Kh1 {[%clk 0:00:20]}  Qxh2# {[%clk 0:01:41]} 0-1


[Site "https://www.chess.com"]

[Event "Titled Tuesday Blitz February 28 Early 2023"]
[White "Pissama Ntsaou, Martial"]
[Black "Toktomushev, Teimur"]
[WhiteFideId "17400864"]
[BlackFideId "14176726"]
[WhiteElo "2064"]
[BlackElo "2106"]
[Result "0-1"]
[Round "09"]
[TimeControl "180+2"]
[Date "2023.02.28"]
[WhiteClock "0:00:01"]
[BlackClock "0:00:11"]

1. e4 {[%clk 0:03:00]}  c5 {[%clk 0:02:59]} 2. Nf3 {[%clk 0:03:00]}  e6 {[%clk 0:03:00]} 3. g3 {[%clk 0:02:58]}  Nc6 {[%clk 0:02:59]} 4. Bg2 {[%clk 0:02:58]}  Nf6 {[%clk 0:03:00]} 5. Nc3 {[%clk 0:02:36]}  d5 {[%clk 0:02:59]} 6. exd5 {[%clk 0:02:33]}  exd5 {[%clk 0:03:00]} 7. d4 {[%clk 0:02:31]}  cxd4 {[%clk 0:02:59]} 8. Nxd4 {[%clk 0:02:30]}  Bg4 {[%clk 0:03:00]} 9. f3 {[%clk 0:02:24]}  Bd7 {[%clk 0:02:59]} 10. Be3 {[%clk 0:02:13]}  Be7 {[%clk 0:01:51]} 11. O-O {[%clk 0:02:07]}  O-O {[%clk 0:01:51]} 12. Bf2 {[%clk 0:01:59]}  Qc7 {[%clk 0:01:30]} 13. Nce2 {[%clk 0:01:58]}  Bc5 {[%clk 0:01:22]} 14. c3 {[%clk 0:01:58]}  Rfe8 {[%clk 0:01:15]} 15. a4 {[%clk 0:01:57]}  a6 {[%clk 0:01:09]} 16. Qd3 {[%clk 0:01:46]}  Ne5 {[%clk 0:01:08]} 17. Qc2 {[%clk 0:01:32]}  Nc4 {[%clk 0:01:05]} 18. Qc1 {[%clk 0:01:06]}  Re7 {[%clk 0:00:58]} 19. b3 {[%clk 0:00:55]}  Nd6 {[%clk 0:00:52]} 20. Nf4 {[%clk 0:00:31]}  Rae8 {[%clk 0:00:46]} 21. Qd2 {[%clk 0:00:20]}  Nf5 {[%clk 0:00:42]} 22. Nxf5 {[%clk 0:00:16]}  Bxf5 {[%clk 0:00:35]} 23. Bxc5 {[%clk 0:00:09]}  Qxc5+ {[%clk 0:00:36]} 24. Kh1 {[%clk 0:00:08]}  g6 {[%clk 0:00:26]} 25. Rfe1 {[%clk 0:00:07]}  h5 {[%clk 0:00:23]} 26. Rxe7 {[%clk 0:00:06]}  Rxe7 {[%clk 0:00:24]} 27. Re1 {[%clk 0:00:05]}  h4 {[%clk 0:00:17]} 28. Rxe7 {[%clk 0:00:05]}  Qxe7 {[%clk 0:00:18]} 29. Qe2 {[%clk 0:00:04]}  Qc7 {[%clk 0:00:13]} 30. g4 {[%clk 0:00:05]}  Qxf4 {[%clk 0:00:13]} 31. gxf5 {[%clk 0:00:05]}  Qxf5 {[%clk 0:00:12]} 32. Qf2 {[%clk 0:00:02]}  Qf4 {[%clk 0:00:11]} 33. h3 {[%clk 0:00:02]}  Nh5 {[%clk 0:00:10]} 34. Qe2 {[%clk 0:00:01]}  Ng3+ {[%clk 0:00:11]} 0-1


[Site "https://www.chess.com"]

[Event "Titled Tuesday Blitz February 28 Early 2023"]
[White "Berezin, Viktor"]
[Black "Gatterer, Florian"]
[WhiteFideId "14107872"]
[BlackFideId "811688"]
[WhiteElo "2310"]
[BlackElo "2221"]
[Result "1-0"]
[Round "09"]
[TimeControl "180+2"]
[Date "2023.02.28"]
[WhiteClock "0:01:09"]
[BlackClock "0:00:13"]

1. d4 {[%clk 0:03:00]}  d6 {[%clk 0:02:59]} 2. Nf3 {[%clk 0:02:58]}  Nf6 {[%clk 0:02:59]} 3. g3 {[%clk 0:02:58]}  g6 {[%clk 0:02:59]} 4. Bg2 {[%clk 0:02:59]}  Bg7 {[%clk 0:03:00]} 5. O-O {[%clk 0:03:00]}  O-O {[%clk 0:03:00]} 6. a4 {[%clk 0:03:01]}  a5 {[%clk 0:02:52]} 7. Nc3 {[%clk 0:02:58]}  Nc6 {[%clk 0:02:51]} 8. e4 {[%clk 0:02:59]}  Bg4 {[%clk 0:02:51]} 9. Be3 {[%clk 0:02:58]}  e5 {[%clk 0:02:46]} 10. d5 {[%clk 0:02:56]}  Ne7 {[%clk 0:02:32]} 11. h3 {[%clk 0:02:56]}  Bxf3 {[%clk 0:02:31]} 12. Bxf3 {[%clk 0:02:56]}  Ne8 {[%clk 0:02:31]} 13. Bg2 {[%clk 0:02:55]}  f5 {[%clk 0:02:31]} 14. f4 {[%clk 0:02:50]}  exf4 {[%clk 0:02:18]} 15. gxf4 {[%clk 0:02:49]}  fxe4 {[%clk 0:02:14]} 16. Nxe4 {[%clk 0:02:48]}  Nf5 {[%clk 0:02:14]} 17. Bf2 {[%clk 0:02:48]}  h6 {[%clk 0:02:11]} 18. c3 {[%clk 0:02:42]}  Nf6 {[%clk 0:02:11]} 19. Re1 {[%clk 0:02:30]}  Nxe4 {[%clk 0:02:01]} 20. Rxe4 {[%clk 0:02:29]}  Re8 {[%clk 0:01:59]} 21. Qg4 {[%clk 0:02:25]}  Rxe4 {[%clk 0:01:50]} 22. Bxe4 {[%clk 0:02:26]}  Qf6 {[%clk 0:01:47]} 23. Re1 {[%clk 0:02:14]}  h5 {[%clk 0:01:40]} 24. Qg5 {[%clk 0:01:55]}  Qxg5+ {[%clk 0:01:37]} 25. fxg5 {[%clk 0:01:55]}  Rf8 {[%clk 0:01:29]} 26. Kg2 {[%clk 0:01:54]}  Be5 {[%clk 0:01:29]} 27. h4 {[%clk 0:01:44]}  Kg7 {[%clk 0:01:15]} 28. Rc1 {[%clk 0:01:38]}  b6 {[%clk 0:01:15]} 29. Re1 {[%clk 0:01:30]}  Rf7 {[%clk 0:01:14]} 30. Bd3 {[%clk 0:01:25]}  Rf8 {[%clk 0:01:10]} 31. Bb5 {[%clk 0:01:24]}  Ne7 {[%clk 0:01:07]} 32. Bd4 {[%clk 0:01:17]}  Rf5 {[%clk 0:00:24]} 33. Bd7 {[%clk 0:01:15]}  Rf4 {[%clk 0:00:17]} 34. Rxe5 {[%clk 0:01:10]}  Rxd4 {[%clk 0:00:12]} 35. Rxe7+ {[%clk 0:01:09]}  Kf8 {[%clk 0:00:13]} 36. Re8+ {[%clk 0:01:09]}  Kf7 {[%clk 0:00:13]} 37. cxd4 {[%clk 0:01:09]} 1-0


[Site "https://www.chess.com"]

[Event "Titled Tuesday Blitz February 28 Early 2023"]
[White "Filgueira, Hernan"]
[Black "Piriflillo"]
[WhiteFideId "101770"]
[WhiteElo "2363"]
[BlackElo "2324"]
[Result "1/2-1/2"]
[Round "09"]
[TimeControl "180+2"]
[Date "2023.02.28"]
[WhiteClock "0:00:18"]
[BlackClock "0:00:04"]

1. c4 {[%clk 0:02:59]}  e6 {[%clk 0:02:59]} 2. Nc3 {[%clk 0:02:59]}  Nf6 {[%clk 0:02:58]} 3. e4 {[%clk 0:02:58]}  c5 {[%clk 0:02:53]} 4. Nf3 {[%clk 0:02:57]}  d6 {[%clk 0:02:51]} 5. d4 {[%clk 0:02:57]}  cxd4 {[%clk 0:02:51]} 6. Nxd4 {[%clk 0:02:57]}  Nc6 {[%clk 0:02:51]} 7. Be2 {[%clk 0:02:57]}  Be7 {[%clk 0:02:49]} 8. O-O {[%clk 0:02:56]}  O-O {[%clk 0:02:50]} 9. f4 {[%clk 0:02:54]}  d5 {[%clk 0:02:47]} 10. cxd5 {[%clk 0:02:38]}  exd5 {[%clk 0:02:46]} 11. e5 {[%clk 0:02:37]}  Ne4 {[%clk 0:02:42]} 12. Nxe4 {[%clk 0:02:36]}  dxe4 {[%clk 0:02:41]} 13. Nxc6 {[%clk 0:02:36]}  Bc5+ {[%clk 0:02:39]} 14. Kh1 {[%clk 0:02:36]}  bxc6 {[%clk 0:02:39]} 15. Qc2 {[%clk 0:02:35]}  Bb6 {[%clk 0:02:06]} 16. Qxe4 {[%clk 0:02:33]}  Bb7 {[%clk 0:02:07]} 17. Bd3 {[%clk 0:02:26]}  g6 {[%clk 0:02:03]} 18. Bc2 {[%clk 0:02:19]}  Qe7 {[%clk 0:01:57]} 19. f5 {[%clk 0:02:10]}  c5 {[%clk 0:01:56]} 20. Qf4 {[%clk 0:02:10]}  Rfe8 {[%clk 0:01:34]} 21. Re1 {[%clk 0:01:54]}  Bc7 {[%clk 0:01:28]} 22. Qg4 {[%clk 0:01:38]}  Bxe5 {[%clk 0:01:14]} 23. Bg5 {[%clk 0:01:29]}  Qc7 {[%clk 0:01:00]} 24. Qh4 {[%clk 0:01:17]}  Bh8 {[%clk 0:00:51]} 25. f6 {[%clk 0:01:07]}  Qc6 {[%clk 0:00:46]} 26. Qf2 {[%clk 0:01:06]}  Rad8 {[%clk 0:00:35]} 27. Re7 {[%clk 0:01:02]}  Rd6 {[%clk 0:00:22]} 28. Rae1 {[%clk 0:00:52]}  Rdd8 {[%clk 0:00:15]} 29. Bb3 {[%clk 0:00:45]}  c4 {[%clk 0:00:14]} 30. Rxe8+ {[%clk 0:00:36]}  Rxe8 {[%clk 0:00:14]} 31. Rxe8+ {[%clk 0:00:37]}  Qxe8 {[%clk 0:00:14]} 32. Bxc4 {[%clk 0:00:37]}  Qe4 {[%clk 0:00:10]} 33. Bf1 {[%clk 0:00:36]}  Qb1 {[%clk 0:00:04]} 34. Kg1 {[%clk 0:00:34]}  Qxa2 {[%clk 0:00:04]} 35. Qd4 {[%clk 0:00:32]}  Qd5 {[%clk 0:00:03]} 36. Qxa7 {[%clk 0:00:28]}  Qd7 {[%clk 0:00:02]} 37. Qb8+ {[%clk 0:00:27]}  Bc8 {[%clk 0:00:02]} 38. Qe5 {[%clk 0:00:27]}  Qe6 {[%clk 0:00:02]} 39. Qxe6 {[%clk 0:00:23]}  Bxe6 {[%clk 0:00:02]} 40. b4 {[%clk 0:00:24]}  h6 {[%clk 0:00:02]} 41. Bxh6 {[%clk 0:00:22]}  Bxf6 {[%clk 0:00:02]} 42. Be3 {[%clk 0:00:22]}  Be5 {[%clk 0:00:02]} 43. b5 {[%clk 0:00:22]}  Kf8 {[%clk 0:00:03]} 44. b6 {[%clk 0:00:21]}  Ke7 {[%clk 0:00:03]} 45. b7 {[%clk 0:00:20]}  Bb8 {[%clk 0:00:03]} 46. g3 {[%clk 0:00:20]}  Kd7 {[%clk 0:00:04]} 47. Bf4 {[%clk 0:00:19]}  Bxf4 {[%clk 0:00:03]} 48. gxf4 {[%clk 0:00:19]}  Kc7 {[%clk 0:00:03]} 49. Kf2 {[%clk 0:00:18]}  Bd5 {[%clk 0:00:03]} 50. Kg3 {[%clk 0:00:19]}  Bxb7 {[%clk 0:00:03]} 51. Kh4 {[%clk 0:00:20]}  Kd7 {[%clk 0:00:03]} 52. Kg5 {[%clk 0:00:21]}  Ke7 {[%clk 0:00:04]} 53. h4 {[%clk 0:00:20]}  Be4 {[%clk 0:00:04]} 54. Be2 {[%clk 0:00:20]}  Bb1 {[%clk 0:00:04]} 55. Bc4 {[%clk 0:00:19]}  Bc2 {[%clk 0:00:04]} 56. h5 {[%clk 0:00:19]}  gxh5 {[%clk 0:00:04]} 57. Kxh5 {[%clk 0:00:18]}  Kf6 {[%clk 0:00:04]} 1/2-1/2


[Site "https://www.chess.com"]

[Event "Titled Tuesday Blitz February 28 Early 2023"]
[White "Fawzy, Adham"]
[Black "Kornyukov, Alexey"]
[WhiteFideId "10613129"]
[BlackFideId "4150457"]
[WhiteElo "2543"]
[BlackElo "2352"]
[Result "1-0"]
[Round "09"]
[TimeControl "180+2"]
[Date "2023.02.28"]
[WhiteClock "0:00:23"]
[BlackClock "0:00:21"]

1. e4 {[%clk 0:02:57]}  c5 {[%clk 0:02:58]} 2. Nf3 {[%clk 0:02:57]}  Nc6 {[%clk 0:02:57]} 3. Bb5 {[%clk 0:02:57]}  e5 {[%clk 0:02:57]} 4. O-O {[%clk 0:02:36]}  Be7 {[%clk 0:02:46]} 5. Re1 {[%clk 0:02:27]}  Nf6 {[%clk 0:02:44]} 6. Bxc6 {[%clk 0:02:15]}  dxc6 {[%clk 0:02:38]} 7. Nxe5 {[%clk 0:02:15]}  O-O {[%clk 0:02:38]} 8. d3 {[%clk 0:02:13]}  Be6 {[%clk 0:02:38]} 9. Nc3 {[%clk 0:02:06]}  Qc7 {[%clk 0:02:37]} 10. Nf3 {[%clk 0:02:02]}  b5 {[%clk 0:02:37]} 11. h3 {[%clk 0:02:00]}  b4 {[%clk 0:02:37]} 12. Ne2 {[%clk 0:01:58]}  Bd6 {[%clk 0:02:35]} 13. Be3 {[%clk 0:01:48]}  Rad8 {[%clk 0:02:32]} 14. Qc1 {[%clk 0:01:32]}  h6 {[%clk 0:02:23]} 15. b3 {[%clk 0:01:30]}  Be5 {[%clk 0:02:11]} 16. Nxe5 {[%clk 0:01:22]}  Qxe5 {[%clk 0:02:09]} 17. f4 {[%clk 0:01:01]}  Qc7 {[%clk 0:02:08]} 18. Bxc5 {[%clk 0:00:58]}  Rfe8 {[%clk 0:02:06]} 19. f5 {[%clk 0:00:56]}  Bc8 {[%clk 0:01:52]} 20. Qf4 {[%clk 0:00:55]}  Qd7 {[%clk 0:01:33]} 21. Bxb4 {[%clk 0:00:51]}  Nh5 {[%clk 0:01:23]} 22. Qf3 {[%clk 0:00:47]}  Nf6 {[%clk 0:01:20]} 23. Bc3 {[%clk 0:00:47]}  Qe7 {[%clk 0:01:13]} 24. Nf4 {[%clk 0:00:40]}  Nd7 {[%clk 0:01:11]} 25. e5 {[%clk 0:00:34]}  Qc5+ {[%clk 0:01:09]} 26. Kh1 {[%clk 0:00:28]}  Qxc3 {[%clk 0:01:08]} 27. e6 {[%clk 0:00:28]}  f6 {[%clk 0:00:57]} 28. Ne2 {[%clk 0:00:06]}  Qxc2 {[%clk 0:00:51]} 29. exd7 {[%clk 0:00:06]}  Rxd7 {[%clk 0:00:48]} 30. Qf1 {[%clk 0:00:02]}  Qxd3 {[%clk 0:00:47]} 31. Nf4 {[%clk 0:00:01]}  Rxe1 {[%clk 0:00:46]} 32. Qxe1 {[%clk 0:00:01]}  Qd4 {[%clk 0:00:41]} 33. Qe8+ {[%clk 0:00:01]}  Kh7 {[%clk 0:00:40]} 34. Rf1 {[%clk 0:00:01]}  Rd8 {[%clk 0:00:38]} 35. Qg6+ {[%clk 0:00:01]}  Kh8 {[%clk 0:00:38]} 36. Nh5 {[%clk 0:00:02]}  Qd7 {[%clk 0:00:36]} 37. g4 {[%clk 0:00:02]}  Qe8 {[%clk 0:00:35]} 38. Qxe8+ {[%clk 0:00:01]}  Rxe8 {[%clk 0:00:35]} 39. Kg2 {[%clk 0:00:02]}  Re2+ {[%clk 0:00:34]} 40. Rf2 {[%clk 0:00:03]}  Rxf2+ {[%clk 0:00:34]} 41. Kxf2 {[%clk 0:00:04]}  Kg8 {[%clk 0:00:33]} 42. Ke3 {[%clk 0:00:04]}  Kf7 {[%clk 0:00:32]} 43. Kd4 {[%clk 0:00:05]}  g6 {[%clk 0:00:33]} 44. Ng3 {[%clk 0:00:05]}  gxf5 {[%clk 0:00:33]} 45. gxf5 {[%clk 0:00:06]}  Ke7 {[%clk 0:00:31]} 46. Kc5 {[%clk 0:00:07]}  Kd7 {[%clk 0:00:31]} 47. Ne4 {[%clk 0:00:07]}  Kc7 {[%clk 0:00:31]} 48. Nxf6 {[%clk 0:00:07]}  Bxf5 {[%clk 0:00:31]} 49. h4 {[%clk 0:00:08]}  Bg6 {[%clk 0:00:30]} 50. a3 {[%clk 0:00:08]}  Bf5 {[%clk 0:00:29]} 51. b4 {[%clk 0:00:09]}  a6 {[%clk 0:00:29]} 52. Nh5 {[%clk 0:00:09]}  Bd3 {[%clk 0:00:29]} 53. Nf4 {[%clk 0:00:10]}  Be4 {[%clk 0:00:29]} 54. Ne2 {[%clk 0:00:10]}  Bd3 {[%clk 0:00:29]} 55. Nd4 {[%clk 0:00:11]}  h5 {[%clk 0:00:28]} 56. Nxc6 {[%clk 0:00:11]}  Be4 {[%clk 0:00:28]} 57. Nd4 {[%clk 0:00:11]}  Bd3 {[%clk 0:00:28]} 58. Ne6+ {[%clk 0:00:11]}  Kd7 {[%clk 0:00:28]} 59. Nf4 {[%clk 0:00:12]}  Bc2 {[%clk 0:00:25]} 60. Nxh5 {[%clk 0:00:12]}  Kc7 {[%clk 0:00:26]} 61. Nf4 {[%clk 0:00:13]}  Bd1 {[%clk 0:00:25]} 62. Nd5+ {[%clk 0:00:12]}  Kb7 {[%clk 0:00:24]} 63. Nc3 {[%clk 0:00:13]}  Bh5 {[%clk 0:00:22]} 64. Ne4 {[%clk 0:00:14]}  Bg6 {[%clk 0:00:22]} 65. Nd6+ {[%clk 0:00:14]}  Kc7 {[%clk 0:00:22]} 66. a4 {[%clk 0:00:13]}  Bh5 {[%clk 0:00:22]} 67. a5 {[%clk 0:00:14]}  Bg6 {[%clk 0:00:21]} 68. Nc4 {[%clk 0:00:13]}  Bh5 {[%clk 0:00:21]} 69. Nb6 {[%clk 0:00:14]}  Bg6 {[%clk 0:00:21]} 70. Kd5 {[%clk 0:00:14]}  Bh5 {[%clk 0:00:21]} 71. Ke5 {[%clk 0:00:14]}  Bf3 {[%clk 0:00:21]} 72. Na4 {[%clk 0:00:12]}  Kc6 {[%clk 0:00:21]} 73. Nc3 {[%clk 0:00:11]}  Bh5 {[%clk 0:00:17]} 74. Kf5 {[%clk 0:00:11]}  Kd6 {[%clk 0:00:17]} 75. Kg5 {[%clk 0:00:11]}  Bf7 {[%clk 0:00:14]} 76. h5 {[%clk 0:00:12]}  Bxh5 {[%clk 0:00:14]} 77. Kxh5 {[%clk 0:00:12]}  Kc6 {[%clk 0:00:14]} 78. Kg5 {[%clk 0:00:12]}  Kd6 {[%clk 0:00:15]} 79. Kf5 {[%clk 0:00:13]}  Kc6 {[%clk 0:00:15]} 80. Ke5 {[%clk 0:00:13]}  Kb7 {[%clk 0:00:15]} 81. Kd5 {[%clk 0:00:14]}  Ka7 {[%clk 0:00:16]} 82. Kc5 {[%clk 0:00:15]}  Kb7 {[%clk 0:00:16]} 83. Nd5 {[%clk 0:00:16]}  Ka7 {[%clk 0:00:16]} 84. Kc6 {[%clk 0:00:16]}  Kb8 {[%clk 0:00:16]} 85. Kb6 {[%clk 0:00:17]}  Ka8 {[%clk 0:00:17]} 86. Kxa6 {[%clk 0:00:18]}  Kb8 {[%clk 0:00:17]} 87. Kb6 {[%clk 0:00:19]}  Ka8 {[%clk 0:00:18]} 88. Kc7 {[%clk 0:00:18]}  Ka7 {[%clk 0:00:18]} 89. b5 {[%clk 0:00:19]}  Ka8 {[%clk 0:00:18]} 90. Nb6+ {[%clk 0:00:18]}  Ka7 {[%clk 0:00:18]} 91. Nc8+ {[%clk 0:00:19]}  Ka8 {[%clk 0:00:19]} 92. Nd6 {[%clk 0:00:20]}  Ka7 {[%clk 0:00:19]} 93. b6+ {[%clk 0:00:20]}  Ka6 {[%clk 0:00:19]} 94. b7 {[%clk 0:00:21]}  Kxa5 {[%clk 0:00:19]} 95. b8=Q {[%clk 0:00:21]}  Ka4 {[%clk 0:00:20]} 96. Qb5+ {[%clk 0:00:22]}  Ka3 {[%clk 0:00:20]} 97. Nc4+ {[%clk 0:00:23]}  Ka2 {[%clk 0:00:21]} 98. Qb2# {[%clk 0:00:23]} 1-0


[Site "https://www.chess.com"]